fUST/lending_fUST_20250715
["ID","MTS","AMOUNT","RATE_DAILY","PERIOD"]
[372269868,1752569465420,-545.61,0.00022191,2]
[372269869,1752569465433,-487.86,0.00022191,2]
[372269870,1752569465444,-699.09,0.00022191,2]
[372269871,1752569465456,-1544.73,0.00022191,2]
[372269872,1752569465469,-364.38688366,0.00022191,2]
[372269873,1752569465647,-478.72311634,0.00022191,2]
[372269874,1752569465660,-1501.29,0.00022191,2]
[372269875,1752569465672,-726.16,0.00022191,2]
[372269876,1752569465684,-513.49,0.00022191,2]
[372269877,1752569465696,-460.0,0.00022191,2]
[372269878,1752569465708,-869.68,0.00022191,2]
[372269879,1752569465721,-626.75,0.00022191,2]
[372269880,1752569465733,-2036.4,0.00022191,2]
[372269881,1752569465746,-460.0,0.00022191,2]
[372269882,1752569465759,-2261.79,0.00022191,2]
[372269883,1752569465772,-6187.23,0.00022191,2]
[372269884,1752569465783,-1463.18,0.00022191,2]
[372269885,1752569465796,-460.0,0.00022191,2]
[372269886,1752569465808,-460.0,0.00022191,2]
[372269887,1752569465820,-460.0,0.00022191,2]
[372269888,1752569465833,-460.0,0.00022191,2]
[372269889,1752569465846,-547.53,0.00022191,2]
[372269890,1752569465859,-1190.76,0.00022191,2]
[372269891,1752569465870,-460.0,0.00022191,2]
[372269892,1752569465882,-1500.0,0.00022212,2]
[372269893,1752569465895,-3000.0,0.00022212,2]
[372269894,1752569465908,-767.32238755,0.00022212,2]
[372269895,1752569465920,-600.0,0.0002223,2]
[372269896,1752569465929,-8943.84980025,0.00022279,6]
[372269897,1752569465946,-1464.05,0.00021917,2]
[372269898,1752569465956,-1442.91238016,0.00022279,6]
[372269899,1752569465966,-3250.65755655,0.0002232,2]
[372269900,1752569465975,-682.536,0.00022419,2]
[372269901,1752569465985,-2155.0,0.00022419,2]
[372269902,1752569465996,-407.0,0.00022419,2]
[372269903,1752569466006,-412.514,0.00022419,2]
[372269904,1752569466015,-968.0,0.00022419,2]
[372269905,1752569466026,-587.0,0.00022427,2]
[372269906,1752569466035,-500.0,0.00022427,2]
[372269907,1752569466045,-560.0,0.00022461,2]
[372269908,1752569466054,-168.0,0.00022464,2]
[372269909,1752569466063,-500.0,0.00022465,2]
[372269910,1752569466073,-460.0,0.00022465,2]
[372269911,1752569466083,-151.0,0.00022465,7]
[372269912,1752569466092,-436.98448686,0.00022465,2]
[372269913,1752569466103,-337.917585,0.00022465,7]
[372269914,1752569466113,-337.917577,0.00022465,7]
[372269915,1752569466123,-460.0,0.00022465,2]
[372269916,1752569466134,-460.0,0.00022465,2]
[372269917,1752569466144,-576.27,0.00022465,2]
[372269918,1752569466154,-347.84,0.00022465,2]
[372269919,1752569466164,-506.85,0.00022465,2]
[372269920,1752569466174,-765.96,0.00022465,2]
[372269921,1752569466184,-472.07627902,0.00022465,2]
[372269922,1752569466193,-460.0,0.00022465,2]
[372269923,1752569466420,-460.0,0.00022465,2]
[372269924,1752569466438,-839.15,0.00022465,2]
[372269925,1752569466450,-460.0,0.00022465,2]
[372269926,1752569466459,-545.9,0.00022465,2]
[372269927,1752569466470,-545.35,0.00022465,2]
[372269928,1752569466480,-460.0,0.00022465,2]
[372269929,1752569466490,-937.37,0.00022465,2]
[372269930,1752569466499,-460.0,0.00022465,2]
[372269931,1752569466509,-471.98,0.00022465,2]
[372269932,1752569466519,-930.19,0.00022465,2]
[372269933,1752569466528,-460.0,0.00022465,2]
[372269934,1752569466538,-460.0,0.00022465,2]
[372269935,1752569466549,-917.11,0.00022465,2]
[372269936,1752569466558,-460.0,0.00022465,2]
[372269937,1752569466568,-460.0,0.00022465,2]
[372269938,1752569466578,-488.93166914,0.00022465,2]
[372269939,1752569466588,-899.84,0.00022465,2]
[372269940,1752569466598,-460.0,0.00022465,2]
[372269941,1752569466607,-534.61,0.00022465,2]
[372269942,1752569466618,-460.0,0.00022465,2]
[372269943,1752569466628,-460.0,0.00022465,2]
[372269944,1752569466637,-460.0,0.00022465,2]
[372269945,1752569466647,-761.76,0.00022465,2]
[372269946,1752569466656,-460.0,0.00022465,2]
[372269947,1752569466666,-1399.42,0.00022465,2]
[372269948,1752569466675,-468.78,0.00022465,2]
[372269949,1752569466684,-491.13,0.00022465,2]
[372269950,1752569466694,-460.0,0.00022465,2]
[372269951,1752569466704,-1927.23,0.00022465,2]
[372269952,1752569466714,-4166.42,0.00022465,2]
[372269953,1752569466724,-765.26,0.00022465,2]
[372269954,1752569466733,-5602.8,0.00022465,2]
[372269955,1752569466743,-848.72,0.00022465,2]
[372269956,1752569466752,-460.0,0.00022465,2]
[372269957,1752569466762,-460.0,0.00022465,2]
[372269958,1752569466771,-460.0,0.00022465,2]
[372269959,1752569466781,-740.44,0.00022465,2]
[372269960,1752569466790,-714.34,0.00022465,2]
[372269961,1752569466801,-768.33,0.00022465,2]
[372269962,1752569466810,-460.0,0.00022465,2]
[372269963,1752569466819,-6272.41,0.00022465,2]
[372269964,1752569466829,-3406.65,0.00022465,2]
[372269965,1752569466839,-460.0,0.00022465,2]
[372269966,1752569466848,-954.03,0.00022465,2]
[372269967,1752569466858,-685.43,0.00022465,2]
[372269968,1752569466867,-6837.89,0.00022465,2]
[372269969,1752569466877,-460.0,0.00022465,2]
[372269970,1752569466886,-544.92,0.00022465,2]
[372269971,1752569466896,-1040.12,0.00022465,2]
[372269972,1752569466906,-1141.15,0.00022465,2]
[372269973,1752569466915,-732.0,0.00022465,2]
[372269974,1752569466924,-1213.65,0.00022465,2]
[372269975,1752569466934,-545.61,0.00022465,2]
[372269976,1752569466944,-487.86,0.00022465,2]
[372269977,1752569466954,-699.09,0.00022465,2]
[372269978,1752569466963,-1544.73,0.00022465,2]
[372269979,1752569466972,-843.11,0.00022465,2]
[372269980,1752569466982,-1501.29,0.00022465,2]
[372269981,1752569466991,-726.16,0.00022465,2]
[372269982,1752569467001,-513.49,0.00022465,2]
[372269983,1752569467010,-460.0,0.00022465,2]
[372269984,1752569467020,-869.68,0.00022465,2]
[372269985,1752569467029,-626.75,0.00022465,2]
[372269986,1752569467039,-2036.4,0.00022465,2]
[372269987,1752569467048,-460.0,0.00022465,2]
[372269988,1752569467058,-1246.99446343,0.00022465,2]
[372269989,1752569467071,-588.7,0.00022465,2]
[372269990,1752569467149,-769.42311904,0.00022191,2]
[372269991,1752569469589,-460.0,0.00019178,2]
[372269992,1752569469600,-78.16046026,0.00019178,2]
[372269993,1752569470445,570.7615081,0.000222,69]
[372269994,1752569470540,570.76150809,0.000222,69]
[372269995,1752569470803,570.76150809,0.00022523,70]
[372269996,1752569473132,570.76150809,0.00023971,76]
[372269997,1752569525067,150.0,0.00016143,2]
[372269998,1752569525543,150.0,0.00016912,2]
[372269999,1752569525994,150.0,0.0001768,2]
[372270001,1752569595505,150.0,0.00017744,2]
[372270003,1752569619922,1444.0,0.00026137,120]
[372270004,1752569666325,150.0,0.00015234,2]
[372270005,1752569666747,150.0,0.0001596,2]
[372270006,1752569667172,150.0,0.00016685,2]
[372270007,1752569667713,150.0,0.00017411,2]
[372270008,1752569742106,150.0,0.00017347,2]
[372270010,1752569865103,3621.13336854,0.000255,120]
[372270011,1752569885374,150.0,0.00016053,2]
[372270012,1752569885806,150.0,0.00016817,2]
[372270013,1752569959897,190.25383603,0.000222,69]
[372270014,1752569960494,150.0,0.00016335,2]
[372270015,1752569960912,150.0,0.00017113,2]
[372270016,1752569964844,190.25383603,0.000222,69]
[372270018,1752569988642,255.1731179,0.00017943,2]
[372270021,1752570135883,1376.221132,0.00027397,120]
[372270022,1752570165627,157.665771,0.00013699,2]
[372270026,1752570405726,680.53044184,0.00026137,120]
[372270029,1752570456863,190.25383603,0.000222,69]
[372270032,1752570545297,1518.9460222,0.00027397,120]
[372270033,1752570551117,-310.1798,0.00018158,2]
[372270034,1752570554993,-103.8202,0.00018158,2]
[372270035,1752570555015,-431.21705925,0.00018762,2]
[372270036,1752570555040,-413.42,0.00018768,3]
[372270037,1752570555061,-1200.0,0.00018772,2]
[372270038,1752570555081,-1023.0,0.00018772,2]
[372270039,1752570555103,-300.0,0.00018772,2]
[372270040,1752570555126,-500.0,0.00018773,2]
[372270041,1752570555146,-526.26988473,0.00018773,2]
[372270042,1752570555167,-501.50161883,0.00018773,2]
[372270043,1752570555187,-500.0,0.00018773,2]
[372270044,1752570555207,-500.0,0.00018773,2]
[372270045,1752570555227,-500.0,0.00018773,2]
[372270046,1752570555248,-501.35266626,0.00018773,2]
[372270047,1752570555268,-500.0,0.00018773,2]
[372270048,1752570555289,-500.36908229,0.00018773,2]
[372270049,1752570555311,-514.59780035,0.00018773,2]
[372270050,1752570555332,-500.48704993,0.00018773,2]
[372270051,1752570555357,-500.0,0.00018773,2]
[372270052,1752570555380,-511.26068992,0.00018773,2]
[372270053,1752570555400,-500.0,0.00018773,2]
[372270054,1752570555420,-500.0,0.00018773,2]
[372270055,1752570555441,-500.0,0.00018773,2]
[372270056,1752570555461,-402.54328236,0.00018773,2]
[372270057,1752570555482,-179.60211466,0.00018773,2]
[372270058,1752570555504,-72040.70242311,0.00018778,2]
[372270060,1752570603606,150.0,0.00017066,2]
[372270072,1752570632451,-544.25557369,0.00018773,2]
[372270073,1752570632461,-18.36395281,0.00018773,2]
[372270075,1752570632480,-481.63604719,0.00018773,2]
[372270076,1752570632490,-183.72514761,0.00018773,2]
[372270078,1752570632509,-316.27485239,0.00018773,2]
[372270080,1752570632519,-300.0,0.00018777,2]
[372270082,1752570632528,-1200.0,0.00018777,2]
[372270084,1752570632538,-105452.18562103,0.00018778,2]
[372270086,1752570632549,-4244.33521865,0.00018778,2]
[372270130,1752570638508,-9775.3558054,0.00018778,2]
[372270132,1752570638520,-36947.39834014,0.00018778,2]
[372270137,1752570638565,-23368.0,0.00018778,2]
[372270140,1752570638578,-2066.11537434,0.00018778,2]
[372270142,1752570638589,-11181.22140877,0.00018778,2]
[372270151,1752570638672,-104924.68580856,0.00018778,2]
[372270153,1752570638682,-422.67044648,0.00019073,2]
[372270155,1752570638691,-500.0,0.00019173,2]
[372270157,1752570638701,-500.0,0.00019173,2]
[372270159,1752570638710,-231.88414381,0.00019173,2]
[372270161,1752570638721,-502.79331176,0.00019173,2]
[372270164,1752570638730,-500.0,0.00019173,2]
[372270167,1752570638740,-504.32043466,0.00019173,2]
[372270170,1752570638749,-500.0,0.00019173,2]
[372270172,1752570638759,-348.96960184,0.00019173,2]
[372270174,1752570638768,-522.10421559,0.00019173,2]
[372270176,1752570638785,-503.01863022,0.00019173,2]
[372270178,1752570638797,-500.0,0.00019173,2]
[372270180,1752570638807,-500.0,0.00019173,2]
[372270182,1752570638816,-500.0,0.00019173,2]
[372270184,1752570638826,-500.0,0.00019173,2]
[372270185,1752570638835,-501.86520861,0.00019173,2]
[372270187,1752570638845,-500.0,0.00019173,2]
[372270190,1752570638854,-500.0,0.00019173,2]
[372270192,1752570638864,-468.51044187,0.00019173,2]
[372270193,1752570638874,-500.0,0.00019173,2]
[372270196,1752570638883,-428.6106121,0.00019177,2]
[372270198,1752570638893,-234.45923871,0.00019177,2]
[372270200,1752570638903,-359.1322657,0.00019177,2]
[372270202,1752570638914,-218.74382155,0.00019177,2]
[372270204,1752570638926,-500.0,0.00019177,2]
[372270206,1752570638935,-500.0,0.00019177,2]
[372270207,1752570638945,-500.0,0.00019177,2]
[372270209,1752570638955,-200.77695813,0.00019177,2]
[372270211,1752570638965,-500.0,0.00019177,2]
[372270214,1752570638980,-500.0,0.00019177,2]
[372270216,1752570638989,-502.32014482,0.00019177,2]
[372270217,1752570638998,-500.0,0.00019177,2]
[372270220,1752570639009,-504.85600732,0.00019177,2]
[372270222,1752570639019,-167.27369066,0.00019177,2]
[372270223,1752570639029,-500.0,0.00019177,2]
[372270226,1752570639039,-500.0,0.00019177,2]
[372270227,1752570639049,-500.0,0.00019177,2]
[372270229,1752570639059,-500.0,0.00019177,2]
[372270231,1752570639068,-453.28280942,0.00019177,2]
[372270234,1752570639078,-500.0,0.00019177,2]
[372270236,1752570639087,-500.00000001,0.00019177,2]
[372270238,1752570639096,-500.0,0.00019177,2]
[372270240,1752570639105,-500.0,0.00019177,2]
[372270242,1752570639115,-500.0,0.00019177,2]
[372270244,1752570639125,-500.0,0.00019177,2]
[372270246,1752570639134,-500.0,0.00019177,2]
[372270248,1752570639143,-500.0,0.00019177,2]
[372270250,1752570639152,-500.0,0.00019177,2]
[372270252,1752570639162,-271.82495455,0.00019177,2]
[372270254,1752570639171,-500.0,0.00019177,2]
[372270256,1752570639182,-500.0,0.00019177,2]
[372270258,1752570639191,-500.0,0.00019177,2]
[372270260,1752570639200,-500.0,0.00019177,2]
[372270262,1752570639210,-500.0,0.00019177,2]
[372270264,1752570639219,-500.0,0.00019177,2]
[372270266,1752570639227,-500.0,0.00019177,2]
[372270267,1752570639236,-471.74595801,0.00019177,2]
[372270270,1752570639246,-500.0,0.00019177,2]
[372270272,1752570639256,-399.11983352,0.00019177,2]
[372270273,1752570639265,-500.0,0.00019177,2]
[372270276,1752570639278,-500.0,0.00019177,2]
[372270278,1752570639288,-500.0,0.00019177,2]
[372270280,1752570639298,-500.0,0.00019177,2]
[372270282,1752570639308,-500.0,0.00019177,2]
[372270284,1752570639318,-500.0,0.00019177,2]
[372270286,1752570639327,-226.29336089,0.00019177,2]
[372270288,1752570639337,-500.0,0.00019177,2]
[372270290,1752570639346,-500.0,0.00019177,2]
[372270292,1752570639355,-500.0,0.00019177,2]
[372270294,1752570639365,-500.0,0.00019177,2]
[372270296,1752570639375,-500.0,0.00019177,2]
[372270298,1752570639385,-500.0,0.00019177,2]
[372270300,1752570639394,-500.0,0.00019177,2]
[372270302,1752570639404,-500.0,0.00019177,2]
[372270304,1752570639413,-500.0,0.00019177,2]
[372270306,1752570639422,-500.0,0.00019177,2]
[372270308,1752570639432,-500.0,0.00019177,2]
[372270310,1752570639441,-500.0,0.00019177,2]
[372270312,1752570639451,-458.97135217,0.00019177,2]
[372270314,1752570639461,-500.0,0.00019177,2]
[372270316,1752570639471,-500.0,0.00019177,2]
[372270318,1752570639481,-500.0,0.00019177,2]
[372270320,1752570639491,-500.0,0.00019177,2]
[372270322,1752570639500,-500.0,0.00019177,2]
[372270324,1752570639510,-500.0,0.00019177,2]
[372270326,1752570639520,-460.0,0.00019178,2]
[372270328,1752570639530,-460.0,0.00019178,2]
[372270330,1752570639540,-460.0,0.00019178,2]
[372270332,1752570639549,-460.0,0.00019178,2]
[372270334,1752570639558,-462.73562627,0.00019178,2]
[372270336,1752570639568,-460.0,0.00019178,2]
[372270338,1752570639577,-460.0,0.00019178,2]
[372270340,1752570639587,-462.12822993,0.00019178,2]
[372270342,1752570639596,-497.02887072,0.00019178,2]
[372270344,1752570639605,-460.0,0.00019178,2]
[372270346,1752570639615,-460.0,0.00019178,2]
[372270348,1752570639624,-460.0,0.00019178,2]
[372270350,1752570639634,-460.0,0.00019178,2]
[372270352,1752570639643,-460.0,0.00019178,2]
[372270354,1752570639652,-460.0,0.00019178,2]
[372270356,1752570639661,-460.0,0.00019178,2]
[372270358,1752570639671,-460.62780699,0.00019178,2]
[372270360,1752570639681,-460.0,0.00019178,2]
[372270362,1752570639691,-460.0,0.00019178,2]
[372270364,1752570639701,-460.0,0.00019178,2]
[372270365,1752570639711,-460.0,0.00019178,2]
[372270367,1752570639720,-356.20578595,0.00019178,2]
[372270370,1752570639730,-448.83137158,0.00019178,2]
[372270372,1752570639741,-460.0,0.00019178,2]
[372270374,1752570639751,-460.0,0.00019178,2]
[372270376,1752570639761,-460.0,0.00019178,2]
[372270378,1752570639772,-460.0,0.00019178,2]
[372270380,1752570639781,-460.0,0.00019178,2]
[372270382,1752570639791,-460.0,0.00019178,2]
[372270384,1752570639802,-460.0,0.00019178,2]
[372270386,1752570639812,-460.0,0.00019178,2]
[372270388,1752570639822,-518.56,0.00019178,2]
[372270390,1752570639832,-460.0,0.00019178,2]
[372270392,1752570639842,-460.0,0.00019178,2]
[372270394,1752570639851,-460.0,0.00019178,2]
[372270396,1752570639861,-460.0,0.00019178,2]
[372270398,1752570639870,-584.31354725,0.00019178,2]
[372270400,1752570639880,-460.0,0.00019178,2]
[372270402,1752570639890,-460.85241367,0.00019178,2]
[372270404,1752570639899,-460.0,0.00019178,2]
[372270406,1752570639909,-460.0,0.00019178,2]
[372270408,1752570639919,-460.0,0.00019178,2]
[372270410,1752570639929,-460.0,0.00019178,2]
[372270412,1752570639939,-460.0,0.00019178,2]
[372270414,1752570639950,-365.67973378,0.00019178,2]
[372270416,1752570639960,-460.0,0.00019178,2]
[372270418,1752570639974,-460.0,0.00019178,2]
[372270420,1752570639983,-460.0,0.00019178,2]
[372270422,1752570639993,-460.0,0.00019178,2]
[372270424,1752570640003,-460.0,0.00019178,2]
[372270426,1752570640014,-460.0,0.00019178,2]
[372270428,1752570640023,-368.58767156,0.00019178,2]
[372270430,1752570640034,-501.25910598,0.00019178,2]
[372270431,1752570640045,-460.0,0.00019178,2]
[372270432,1752570640054,-460.0,0.00019178,2]
[372270433,1752570640064,-460.0,0.00019178,2]
[372270434,1752570640073,-460.0,0.00019178,2]
[372270435,1752570640082,-460.0,0.00019178,2]
[372270436,1752570640091,-929.48,0.00019178,2]
[372270437,1752570640101,-460.0,0.00019178,2]
[372270438,1752570640110,-460.0,0.00019178,2]
[372270439,1752570640119,-460.0,0.00019178,2]
[372270440,1752570640128,-460.0,0.00019178,2]
[372270441,1752570640138,-500.0,0.00019178,2]
[372270442,1752570640147,-460.0,0.00019178,2]
[372270443,1752570640157,-460.0,0.00019178,2]
[372270444,1752570640167,-460.0,0.00019178,2]
[372270445,1752570640177,-460.0,0.00019178,2]
[372270446,1752570640186,-460.0,0.00019178,2]
[372270447,1752570640196,-460.0,0.00019178,2]
[372270448,1752570640206,-460.0,0.00019178,2]
[372270449,1752570640215,-460.0,0.00019178,2]
[372270450,1752570640225,-461.39437186,0.00019178,2]
[372270451,1752570640234,-460.70338835,0.00019178,2]
[372270452,1752570640244,-378.1049792,0.00019178,2]
[372270453,1752570640253,-460.30387237,0.00019178,2]
[372270454,1752570640263,-460.0,0.00019178,2]
[372270455,1752570640272,-460.0,0.00019178,2]
[372270456,1752570640282,-460.0,0.00019178,2]
[372270457,1752570640292,-460.0,0.00019178,2]
[372270459,1752570640302,-460.0,0.00019178,2]
[372270461,1752570640312,-460.0,0.00019178,2]
[372270463,1752570640321,-460.0,0.00019178,2]
[372270465,1752570640331,-460.0,0.00019178,2]
[372270467,1752570640342,-460.0,0.00019178,2]
[372270469,1752570640351,-460.0,0.00019178,2]
[372270471,1752570640361,-529.16194606,0.00019178,2]
[372270473,1752570640371,-460.0,0.00019178,2]
[372270475,1752570640380,-460.0,0.00019178,2]
[372270477,1752570640390,-460.0,0.00019178,2]
[372270479,1752570640400,-541.79,0.00019178,2]
[372270481,1752570640409,-460.0,0.00019178,2]
[372270483,1752570640420,-460.0,0.00019178,2]
[372270485,1752570640431,-460.0,0.00019178,2]
[372270487,1752570640440,-460.0,0.00019178,2]
[372270489,1752570640450,-406.35111497,0.00019178,2]
[372270491,1752570640459,-460.0,0.00019178,2]
[372270493,1752570640470,-460.0,0.00019178,2]
[372270495,1752570640479,-460.0,0.00019178,2]
[372270497,1752570640489,-443.45,0.00019178,2]
[372270499,1752570640499,-460.0,0.00019178,2]
[372270501,1752570640508,-460.0,0.00019178,2]
[372270503,1752570640517,-430.0,0.00019178,2]
[372270506,1752570640527,-460.0,0.00019178,2]
[372270508,1752570640537,-460.0,0.00019178,2]
[372270509,1752570640547,-460.0,0.00019178,2]
[372270512,1752570640558,-460.0,0.00019178,2]
[372270514,1752570640568,-460.0,0.00019178,2]
[372270516,1752570640577,-460.0,0.00019178,2]
[372270518,1752570640587,-460.0,0.00019178,2]
[372270520,1752570640598,-460.0,0.00019178,2]
[372270522,1752570640608,-460.0,0.00019178,2]
[372270524,1752570640619,-295.43145608,0.00019178,2]
[372270526,1752570640628,-524.06,0.00019178,2]
[372270528,1752570640638,-460.0,0.00019178,2]
[372270531,1752570640658,-460.0,0.00019178,2]
[372270533,1752570640669,-390.63025663,0.00019178,2]
[372270535,1752570640680,-460.0,0.00019178,2]
[372270537,1752570640690,-461.81207608,0.00019178,2]
[372270539,1752570640699,-460.0,0.00019178,2]
[372270541,1752570640710,-734.04,0.00019178,2]
[372270544,1752570640720,-463.82945391,0.00019178,2]
[372270546,1752570640731,-460.0,0.00019178,2]
[372270548,1752570640740,-460.0,0.00019178,2]
[372270550,1752570640750,-542.32,0.00019178,2]
[372270552,1752570640760,-461.11993333,0.00019178,2]
[372270554,1752570640770,-460.0,0.00019178,2]
[372270556,1752570640780,-460.0,0.00019178,2]
[372270558,1752570640791,-461.36727751,0.00019178,2]
[372270560,1752570640801,-460.0,0.00019178,2]
[372270562,1752570640810,-460.0,0.00019178,2]
[372270564,1752570640821,-460.0,0.00019178,2]
[372270566,1752570640831,-460.0,0.00019178,2]
[372270568,1752570640841,-460.0,0.00019178,2]
[372270570,1752570640850,-460.0,0.00019178,2]
[372270572,1752570640860,-460.0,0.00019178,2]
[372270574,1752570640870,-458.33004213,0.00019178,2]
[372270576,1752570640880,-460.0,0.00019178,2]
[372270578,1752570640890,-460.0,0.00019178,2]
[372270580,1752570640899,-423.90135014,0.00019178,2]
[372270582,1752570640909,-460.87764905,0.00019178,2]
[372270584,1752570640919,-460.0,0.00019178,2]
[372270586,1752570640930,-460.0,0.00019178,2]
[372270588,1752570640940,-460.0,0.00019178,2]
[372270590,1752570640949,-460.0,0.00019178,2]
[372270592,1752570640959,-460.0,0.00019178,2]
[372270594,1752570640972,-460.0,0.00019178,2]
[372270597,1752570640983,-460.0,0.00019178,2]
[372270599,1752570640993,-460.0,0.00019178,2]
[372270601,1752570641003,-380.99330358,0.00019178,2]
[372270603,1752570641014,-460.0,0.00019178,2]
[372270605,1752570641024,-460.0,0.00019178,2]
[372270607,1752570641033,-460.0,0.00019178,2]
[372270609,1752570641043,-804.19,0.00019178,2]
[372270611,1752570641054,-460.0,0.00019178,2]
[372270613,1752570641064,-898.07,0.00019178,2]
[372270615,1752570641074,-460.0,0.00019178,2]
[372270617,1752570641084,-460.0,0.00019178,2]
[372270619,1752570641093,-460.0,0.00019178,2]
[372270621,1752570641104,-460.0,0.00019178,2]
[372270623,1752570641114,-460.0,0.00019178,2]
[372270625,1752570641125,-460.0,0.00019178,2]
[372270627,1752570641136,-460.0,0.00019178,2]
[372270629,1752570641145,-460.0,0.00019178,2]
[372270631,1752570641155,-460.0,0.00019178,2]
[372270634,1752570641165,-555.98701848,0.00019178,2]
[372270636,1752570641175,-364.70305668,0.00019178,2]
[372270638,1752570641185,-460.0,0.00019178,2]
[372270640,1752570641195,-460.0,0.00019178,2]
[372270642,1752570641205,-460.0,0.00019178,2]
[372270644,1752570641214,-460.0,0.00019178,2]
[372270646,1752570641224,-460.0,0.00019178,2]
[372270648,1752570641234,-460.0,0.00019178,2]
[372270650,1752570641244,-460.0,0.00019178,2]
[372270652,1752570641254,-460.0,0.00019178,2]
[372270654,1752570641264,-471.97041884,0.00019178,2]
[372270656,1752570641275,-460.0,0.00019178,2]
[372270658,1752570641285,-460.0,0.00019178,2]
[372270660,1752570641295,-460.0,0.00019178,2]
[372270662,1752570641306,-460.0,0.00019178,2]
[372270664,1752570641316,-460.0,0.00019178,2]
[372270666,1752570641325,-460.0,0.00019178,2]
[372270669,1752570641335,-464.13647043,0.00019178,2]
[372270671,1752570641345,-460.0,0.00019178,2]
[372270673,1752570641355,-466.01776952,0.00019178,2]
[372270675,1752570641366,-460.0,0.00019178,2]
[372270677,1752570641375,-460.0,0.00019178,2]
[372270679,1752570641385,-460.0,0.00019178,2]
[372270681,1752570641395,-460.0,0.00019178,2]
[372270683,1752570641405,-460.0,0.00019178,2]
[372270685,1752570641415,-460.0,0.00019178,2]
[372270687,1752570641425,-461.77044282,0.00019178,2]
[372270689,1752570641434,-898.31,0.00019178,2]
[372270691,1752570641444,-460.0,0.00019178,2]
[372270693,1752570641453,-460.0,0.00019178,2]
[372270695,1752570641463,-460.0,0.00019178,2]
[372270697,1752570641472,-460.0,0.00019178,2]
[372270699,1752570641481,-460.0,0.00019178,2]
[372270701,1752570641491,-460.0,0.00019178,2]
[372270703,1752570641501,-460.0,0.00019178,2]
[372270705,1752570641511,-460.0,0.00019178,2]
[372270707,1752570641520,-460.0,0.00019178,2]
[372270709,1752570641530,-184.92648917,0.00019178,2]
[372270711,1752570641540,-463.7158073,0.00019178,2]
[372270713,1752570641549,-460.0,0.00019178,2]
[372270715,1752570641558,-460.0,0.00019178,2]
[372270717,1752570641568,-460.0,0.00019178,2]
[372270719,1752570641577,-460.0,0.00019178,2]
[372270721,1752570641587,-460.0,0.00019178,2]
[372270723,1752570641596,-891.43,0.00019178,2]
[372270725,1752570641606,-460.0,0.00019178,2]
[372270727,1752570641616,-460.0,0.00019178,2]
[372270729,1752570641626,-460.0,0.00019178,2]
[372270731,1752570641635,-460.49227842,0.00019178,2]
[372270733,1752570641644,-460.0,0.00019178,2]
[372270735,1752570641654,-460.0,0.00019178,2]
[372270737,1752570641664,-460.0,0.00019178,2]
[372270739,1752570641674,-460.0,0.00019178,2]
[372270741,1752570641684,-460.0,0.00019178,2]
[372270743,1752570641694,-460.0,0.00019178,2]
[372270745,1752570641703,-460.0,0.00019178,2]